[Event "Pan-American Collegiate-ch 2025"]
[Site "Charlotte"]
[Date "2025.01.04"]
[Round "4.2"]
[White "Quesada Perez, Yasser"]
[Black "Brodsky, David"]
[Result "1/2-1/2"]
[Annotator "TA"]
[ECO "C42"]
[WhiteElo "2584"]
[BlackElo "2519"]
[PlyCount "165"]
[EventDate "2025.01.02"]
[EventType "team-tourn"]
[EventCountry "USA"]
[SourceTitle "playchess.com"]
[Source "ChessBase"]
[SourceQuality "1"]
[TimeControl "5400+30"]

{[%evp 92,165,61,52,104,104,181,144,178,137,238,240,250,235,223,206,250,250,243,243,243,242,264,247,256,256,255,257,240,0,241,0,233,212,218,11,197,195,176,0,0,0,0,0,0,0,0,0,0,0,0,0,0,0,0,0,0,0,0,0,0,0,0,0,0,0,0,0,0,0,0,0,0,0,0,0]} 1. e4 {[%emt 0:00:03]} e5 {[%emt 0:04:50]} 2. Nf3 {[%emt 0:00:13]} Nf6 {[%emt 0:00:03]} 3. Nxe5 {[%emt 0:00:28]} d6 {[%emt 0:00:10]} 4. Nf3 {[%emt 0:00:09]} Nxe4 {[%emt 0:00:03]} 5. d3 {[%emt 0:00:36]} Nf6 {[%emt 0:00:05]} 6. d4 {[%emt 0:00:04]} g6 {[%emt 0:00:31]} 7. Bd3 {[%emt 0:02:07]} Bg7 {[%emt 0:00:04]} 8. O-O {[%emt 0:05:21]} O-O {[%emt 0:00:07]} 9. c3 {[%emt 0:07:30]} c5 {[%emt 0:01:18]} 10. Bf4 {[%emt 0:09:43]} Nc6 {[%emt 0:02:58]} 11. dxc5 {[%emt 0:04:50]} dxc5 {[%emt 0:00:07]} 12. Na3 {[%emt 0:01:22]} a6 {[%emt 0:08:39]} 13. Bc2 {[%emt 0:02:44]} Bg4 {[%emt 0:04:04]} 14. h3 {[%emt 0:03:43]} Qxd1 {[%emt 0:01:37]} 15. Bxd1 {[%emt 0:00:15]} Bf5 {[%emt 0:13:17]} 16. Bd6 {[%emt 0:01:17]} Rfe8 {[%emt 0:00:14]} 17. Bxc5 {[%emt 0:00:21]} b5 {[%emt 0:00:18]} 18. Nc2 {[%emt 0:03:58]} Bd3 {[%emt 0:10:06]} 19. Re1 {[%emt 0:00:11]} Ne4 {[%emt 0:00:04]} 20. Bd4 {[%emt 0:02:45]} Bh6 {[%emt 0:12:02]} 21. Be3 {[%emt 0:01:45]} Bg7 {[%emt 0:00:09]} 22. Ncd4 {[%emt 0:05:08]} Na5 {[%emt 0:02:17]} 23. Be2 {[%emt 0:01:51]} Bxe2 {[%emt 0:00:52]} 24. Rxe2 {[%emt 0:00:13]} Nc4 {[%emt 0:00:05]} 25. a4 {[%emt 0:05:22]} bxa4 {[%emt 0:04:27]} 26. Rxa4 {[%emt 0:00:27]} Rec8 {[%emt 0:00:06]} 27. Bf4 {[%emt 0:05:15]} Nf6 {[%emt 0:02:25]} 28. Be5 {[%emt 0:02:53]} Nd5 {[%emt 0:01:07]} 29. Bxg7 {[%emt 0:01:52]} Kxg7 {[%emt 0:00:07]} 30. Ne5 {[%emt 0:01:28]} Nxe5 {[%emt 0:08:39]} 31. Rxe5 {[%emt 0:00:05]} Nb6 {[%emt 0:00:04]} 32. Ra2 {[%emt 0:03:08]} Nc4 {[%emt 0:00:19]} 33. Re1 {[%emt 0:01:54]} a5 {[%emt 0:01:17]} 34. Rea1 {[%emt 0:06:26]} a4 {[%emt 0:00:28]} 35. Nc2 {[%emt 0:02:40]} Rab8 {[%emt 0:01:39]} 36. Nb4 {[%emt 0:00:09]} h5 {[%emt 0:00:59]} 37. Nd3 {[%emt 0:01:29]} Rd8 {[%emt 0:02:58]} 38. Rxa4 {[%emt 0:02:00]} Nxb2 {[%emt 0:00:34]} 39. Nxb2 {[%emt 0:00:06]} Rxb2 {[%emt 0:00:03]} 40. Rf4 {[%emt 0:03:11]} Rd7 {[%emt 0:01:05]} 41. Rc1 {[%emt 0:00:17]} Rc7 {[%emt 0:00:29]} 42. h4 {[%emt 0:00:21]} Rcb7 {[%emt 0:09:45]} 43. Kf1 {[%emt 0:02:58]} Rc7 {[%emt 0:01:39]} 44. g3 {[%emt 0:00:16]} Rc5 {[%emt 0:00:27]} 45. c4 {[%emt 0:00:40]} Ra2 {[%emt 0:00:56]} 46. Rc3 {[%emt 0:00:32]} Rb2 {[%emt 0:01:08]} 47. Kg2 {[%emt 0:00:05]} f5 {[%emt 0:01:45]} (47... f6 $14) 48. Rd4 $16 {[%emt 0:00:32]} Rb6 {[%emt 0:00:50]} (48... Kf7 $16 {might work better.} 49. Rd7+ Ke6) 49. Kf3 {[%emt 0:02:43]} Kf6 {[%emt 0:02:09]} 50. Ke3 {[%emt 0:00:40]} Ke5 {[%emt 0:00:17]} (50... Re5+ $16 51. Kd3 Rc5) 51. Rd8 $18 {[%emt 0:01:29]} Rb2 {[%emt 0:03:40]} 52. Re8+ {[%emt 0:00:18]} Kf6 {[%emt 0:00:09]} 53. f4 {[%emt 0:01:32]} Kf7 {[%emt 0:00:32]} 54. Ra8 {[%emt 0:02:17]} Rc6 {[%emt 0:00:15]} 55. c5 $1 {[%emt 0:01:05]} Rb4 {[%emt 0:00:19]} 56. Kd3 {[%emt 0:00:20]} Ke6 {[%emt 0:00:23]} 57. Re8+ {[%emt 0:00:18]} Kd7 {[%emt 0:00:56]} 58. Rg8 {[%emt 0:02:40]} Ke7 {[%emt 0:01:53]} 59. Rc4 {[%emt 0:00:39]} Rb1 {[%emt 0:00:23]} 60. Rc3 {[%emt 0:01:19]} Rb4 $1 {[%emt 0:00:08]} 61. Ra8 {[%emt 0:01:02]} Ke6 $1 {[%emt 0:00:39]} 62. Rd8 {[%emt 0:00:40]} Ra4 {[%emt 0:00:53]} 63. Rc4 $2 {[%emt 0:02:00]} ({White should play} 63. Rc1 $18) 63... Ra1 $2 {[%emt 0:00:19] [#]} (63... Ra3+ $11 {and Black has nothing to worry.} 64. Kd4 Ra2 65. Re8+ Kf7) 64. Re8+ $1 $18 {[%emt 0:00:13]} Kd7 {[%emt 0:00:38] [#]} 65. Re2 $2 {[%emt 0:00:44]} (65. Rg8 $1 $18) 65... Ra3+ $11 {[%emt 0:00:42]} 66. Kd4 {[%emt 0:00:10]} Rxg3 {[%emt 0:00:05]} 67. Kd5 {[%emt 0:00:59]} Rd3+ {[%emt 0:00:41]} 68. Rd4 {[%emt 0:00:01]} Rxd4+ {[%emt 0:00:14]} 69. Kxd4 {[%emt 0:00:01]} Ra6 {[%emt 0:00:35]} 70. Kd5 {[%emt 0:02:45]} Ra1 {[%emt 0:00:05]} 71. c6+ {[%emt 0:00:08]} Kd8 {[%emt 0:00:09]} 72. Re6 {[%emt 0:00:44]} Rd1+ {[%emt 0:00:26]} 73. Ke5 {[%emt 0:00:04]} Rg1 {[%emt 0:00:40]} 74. Kd6 {[%emt 0:01:14]} Rd1+ {[%emt 0:00:05]} 75. Kc5 {[%emt 0:00:08]} Rc1+ {[%emt 0:00:13]} 76. Kd4 {[%emt 0:00:09]} Rd1+ {[%emt 0:00:14]} 77. Ke5 {[%emt 0:00:06]} Rg1 {[%emt 0:00:03]} 78. Rf6 {[%emt 0:01:03]} (78. Kd6 $5 Rd1+ $8 79. Ke5 $11) 78... Kc7 {[%emt 0:00:27]} 79. Kd5 {[%emt 0:00:19]} Rd1+ {[%emt 0:00:14]} 80. Ke6 {[%emt 0:00:56]} Rg1 {[%emt 0:00:07]} 81. Kd5 {[%emt 0:00:47]} Rd1+ {[%emt 0:00:04]} 82. Ke6 {[%emt 0:00:34]} Rg1 {[%emt 0:00:05]} 83. Kd5 {[%emt 0:00:57]} 1/2-1/2

[Event "Pan-American Collegiate-ch 2025"]
[Site "Charlotte"]
[Date "2025.01.04"]
[Round "4.3"]
[White "Parkhov, Yair"]
[Black "Harsha Bharathakoti"]
[Result "1/2-1/2"]
[Annotator "TA"]
[ECO "A33"]
[WhiteElo "2508"]
[BlackElo "2530"]
[PlyCount "49"]
[EventDate "2025.01.02"]
[EventType "team-tourn"]
[EventCountry "USA"]
[SourceTitle "playchess.com"]
[Source "ChessBase"]
[SourceQuality "1"]
[TimeControl "5400+30"]

{[%evp 17,49,-3,0,0,0,-1,3,0,0,0,0,0,0,0,0,0,28,0,0,0,0,-60,-50,-59,-11,-78,-66,-105,-81,-94,0,-95,0,-83]} 1. Nf3 {[%emt 0:00:14]} c5 {[%emt 0:04:03]} 2. c4 {[%emt 0:00:02]} Nc6 {[%emt 0:00:37]} 3. d4 {[%emt 0:00:04]} cxd4 {[%emt 0:00:13]} 4. Nxd4 {[%emt 0:00:04]} Nf6 {[%emt 0:00:28]} 5. Nc3 {[%emt 0:00:07]} e6 {[%emt 0:03:17]} 6. g3 {[%emt 0:00:04]} Qb6 {[%emt 0:02:24]} 7. Nb3 {[%emt 0:00:06]} Ne5 {[%emt 0:03:11]} 8. e4 {[%emt 0:00:36]} Bb4 {[%emt 0:00:06]} 9. Qe2 {[%emt 0:00:06]} d6 $1 {[%emt 0:00:06]} 10. Bd2 {[%emt 0:06:19]} a5 {[%emt 0:21:48][%cal Ba7a5,Ba5a4][%mdl 32]} 11. f4 {[%emt 0:37:00]} Nc6 {[%emt 0:09:50]} 12. Be3 {[%emt 0:10:20]} Qc7 {[%emt 0:08:32]} 13. Bg2 {[%emt 0:02:45]} a4 {[%emt 0:16:45]} 14. Nd2 {[%emt 0:03:49]} Bxc3 {[%emt 0:00:04]} 15. bxc3 {[%emt 0:00:04]} b6 {[%emt 0:01:52]} 16. O-O {[%emt 0:02:04][%cal Oe4e5] Hoping for e5!.} O-O {[%emt 0:01:54]} 17. Rab1 {[%emt 0:04:00]} Nd7 {[%emt 0:04:09]} 18. f5 {[%emt 0:11:42]} Ba6 {[%emt 0:09:50]} 19. Rf4 {[%emt 0:05:46]} (19. e5 $11 exf5 20. exd6 Qxd6 21. Rxf5) 19... Nce5 $15 {[%emt 0:02:53]} 20. Rb4 {[%emt 0:00:19]} Bb7 {[%emt 0:02:16]} (20... Rfe8 $15) 21. g4 {[%emt 0:02:14]} (21. fxe6 $11 fxe6 22. Rxf8+ Kxf8 (22... Rxf8 23. Rxa4 h6 24. Ra7 $11) 23. Bxb6 Nxb6 24. Qf2+ Ke7 25. Qxb6 Qxb6+ 26. Rxb6) 21... Rfe8 {[%emt 0:00:49]} 22. Rb1 {[%emt 0:03:57]} Ba6 {[%emt 0:01:06]} 23. Rb4 {[%emt 0:00:15]} Bb7 {[%emt 0:00:05]} 24. Rb1 $1 {[%emt 0:00:09]} Ba6 {[%emt 0:01:08]} 25. Rb4 $1 {[%emt 0:00:41]} 1/2-1/2

[Event "Pan-American Collegiate-ch 2025"]
[Site "Charlotte"]
[Date "2025.01.04"]
[Round "4.4"]
[White "Cordova, Emilio"]
[Black "Rahul Srivatshav P"]
[Result "1/2-1/2"]
[Annotator "TA"]
[ECO "A38"]
[WhiteElo "2533"]
[BlackElo "2492"]
[PlyCount "36"]
[EventDate "2025.01.02"]
[EventType "team-tourn"]
[EventCountry "USA"]
[SourceTitle "playchess.com"]
[Source "ChessBase"]
[SourceQuality "1"]
[TimeControl "5400+30"]

{[%evp 17,36,-16,-8,-24,0,-3,-2,0,0,0,0,0,0,-7,0,0,-1,-18,-5,-20,6]} 1. Nf3 {[%emt 0:00:04]} Nf6 {[%emt 0:11:47]} 2. g3 {[%emt 0:03:33]} c5 {[%emt 0:01:31]} 3. c4 {[%emt 0:03:45]} g6 {[%emt 0:00:33]} 4. Nc3 {[%emt 0:02:04]} Bg7 {[%emt 0:00:47]} 5. Bg2 {[%emt 0:02:06]} O-O {[%emt 0:00:42]} 6. O-O {[%emt 0:03:56]} Nc6 {[%emt 0:00:25]} 7. d3 {[%emt 0:03:06]} d5 {[%emt 0:05:21]} 8. cxd5 {[%emt 0:00:14]} Nxd5 {[%emt 0:00:05]} 9. Bd2 {[%emt 0:00:22]} b6 {[%emt 0:21:20]} 10. Qa4 {[%emt 0:02:47]} Bb7 {[%emt 0:02:02]} 11. Rac1 {[%emt 0:10:42] The position is equal.} Rc8 {[%emt 0:13:06]} 12. Rfe1 {[%emt 0:14:01]} Ba8 {[%emt 0:02:32]} 13. a3 {[%emt 0:06:30]} a5 {[%emt 0:04:23]} 14. Nxd5 {[%emt 0:17:01]} Qxd5 {[%emt 0:00:20]} 15. Bc3 {[%emt 0:00:07]} Rfd8 {[%emt 0:09:27]} 16. Ne5 {[%emt 0:08:52]} Qe6 {[%emt 0:00:57]} 17. Nxc6 {[%emt 0:00:29]} Bxc6 {[%emt 0:00:24]} 18. Bxc6 {[%emt 0:00:11]} Qxc6 {[%emt 0:00:46] An uneventful encounter.   Weighted Error Value: White=0.02 (flawless) /Black=0.04 (flawless) .  Inaccurate:     	---       	Black=1      OK:         	White=5     	Black=3} 1/2-1/2

[Event "Pan-American Collegiate-ch 2025"]
[Site "Charlotte"]
[Date "2025.01.04"]
[Round "4.5"]
[White "Gazik, Viktor"]
[Black "Khanin, Semen"]
[Result "0-1"]
[Annotator "TA"]
[ECO "C45"]
[WhiteElo "2579"]
[BlackElo "2572"]
[PlyCount "48"]
[EventDate "2025.01.02"]
[EventType "team-tourn"]
[EventCountry "USA"]
[SourceTitle "playchess.com"]
[Source "ChessBase"]
[SourceQuality "1"]
[TimeControl "5400+30"]

{[%evp 14,48,-25,-25,-7,-41,-24,-55,-64,-68,-35,-35,-36,-43,-29,-47,-41,-40,28,23,2,-127,-60,-199,-212,-374,-342,-404,-392,-383,-383,-372,-358,-29985,-29986,-29986,-29987]} 1. e4 {[%emt 0:06:57][%cal Be2e4,Be4e5][%mdl 32]} e5 {[%emt 0:00:05]} 2. Nf3 {[%emt 0:00:31]} Nc6 {[%emt 0:00:06]} 3. d4 {[%emt 0:00:03]} exd4 {[%emt 0:00:06]} 4. Nxd4 {[%emt 0:00:05]} Nf6 {[%emt 0:00:04][%cal Bg8f6,Bf6d5,Bd5b6][%mdl 32]} 5. Nxc6 {[%emt 0:00:05]} bxc6 {[%emt 0:00:04]} 6. e5 {[%emt 0:00:08]} Qe7 {[%emt 0:00:03]} 7. Qe2 {[%emt 0:00:05]} Nd5 {[%emt 0:00:06]} 8. h4 {[%emt 0:00:05]} a5 {[%emt 0:01:05]} 9. c4 {[%emt 0:00:51]} Nb6 {[%emt 0:01:28]} 10. Be3 {[%emt 0:28:16]} Qxe5 {[%emt 0:06:00]} 11. Nd2 {[%emt 0:01:35][%cal Bb1d2,Bd2f3,Bf3g5][%mdl 32]} Bb4 {[%emt 0:06:06][%cal Ob6c4] Black is more active.} (11... Qxb2 12. Bg5+ (12. Bxb6+ Kd8 $18)) 12. O-O-O {[%emt 0:02:24]} O-O {[%emt 0:17:28]} 13. Nf3 {[%emt 0:06:18]} Qe7 $36 {[%emt 0:00:08][%mdl 2048] White is under pressure.} 14. Qc2 $1 {[%emt 0:09:55]} d5 {[%emt 0:02:36]} 15. Ng5 {[%emt 0:14:50][%csl Gg5][%cal Rc2h7]} f5 {[%emt 0:00:48]} (15... g6 $15 16. h5 Bf5) 16. cxd5 {[%emt 0:12:48]} cxd5 {[%emt 0:01:41]} 17. Be2 {[%emt 0:01:54]} (17. a3 $11 {remains equal.} Bd6 18. Bxb6 cxb6 19. Rxd5) 17... Rb8 {[%emt 0:12:05]} (17... h6 $17 18. Nh3 Nc4 (18... Qxh4 $2 {is the wrong capture.} 19. Ng5 $18) 19. Bxc4 dxc4) 18. Bf3 {[%emt 0:01:32] [#]} (18. a3 $15 Bd6 19. Rhe1) 18... c6 $1 $19 {[%emt 0:04:59]} 19. Qxc6 $2 {[%emt 0:08:50] [#]} (19. a3 {was worth a try.} Bd6 20. Qxc6) 19... Bd7 $1 {[%emt 0:01:39]} 20. Bxd5+ {[%emt 0:01:12]} Kh8 {[%emt 0:00:04]} 21. Qxb6 {[%emt 0:00:17]} Rxb6 {[%emt 0:01:18]} 22. Bxb6 {[%emt 0:00:02]} Ba4 {[%emt 0:06:43][%cal Oe7e2] Hoping for ...Qe2!.} 23. b3 $2 {[%emt 0:01:22] [#]} (23. Kb1 $19 Qe2 (23... Bxd1 $2 24. Rxd1 Qe2 25. Bf3 $19) 24. Bf3) 23... Qe2 $1 {[%emt 0:01:56]} 24. Bd4 {[%emt 0:01:36]} Qxa2 {[%emt 0:00:27]} (24... Rc8+ 25. Kb1 Be8 (25... Qc2+ 26. Ka1 $11) 26. Be6 Qc2+ 27. Ka1 Bc3+ 28. Bxc3 Qxc3+ 29. Kb1 $19) 0-1

[Event "Pan-American Collegiate-ch 2025"]
[Site "Charlotte"]
[Date "2025.01.04"]
[Round "4.6"]
[White "Matviishen, Viktor"]
[Black "Dudin, Gleb"]
[Result "0-1"]
[Annotator "TA"]
[ECO "E42"]
[WhiteElo "2548"]
[BlackElo "2516"]
[PlyCount "92"]
[EventDate "2025.01.02"]
[EventType "team-tourn"]
[EventCountry "USA"]
[SourceTitle "playchess.com"]
[Source "ChessBase"]
[SourceQuality "1"]
[TimeControl "5400+30"]

{[%evp 41,92,-13,-19,-53,-54,-46,-54,-61,-74,-94,-84,-189,-95,-129,0,-104,-97,-242,-187,-135,-145,-167,-167,-172,-177,-169,-166,-163,-105,-124,-31,-64,-31,-395,-404,-396,-311,-388,-52,-54,-60,-279,-228,-479,-502,-656,-703,-1667,-1489,-1417,-1231,-29939,-12849]} 1. d4 {[%emt 0:00:01]} Nf6 {[%emt 0:08:04]} 2. c4 {[%emt 0:00:09]} e6 {[%emt 0:00:08]} 3. Nc3 {[%emt 0:00:06]} Bb4 {[%emt 0:00:25]} 4. e3 {[%emt 0:00:14]} b6 {[%emt 0:02:40]} 5. Nge2 {[%emt 0:00:26]} c5 {[%emt 0:00:13]} 6. a3 {[%emt 0:02:16]} Ba5 {[%emt 0:00:14]} 7. Bd2 {[%emt 0:02:22]} O-O {[%emt 0:00:56]} 8. d5 {[%emt 0:05:56]} exd5 {[%emt 0:02:19]} 9. Nxd5 {[%emt 0:03:54]} Nxd5 {[%emt 0:01:51]} 10. cxd5 {[%emt 0:00:08]} Bxd2+ {[%emt 0:02:14]} 11. Qxd2 {[%emt 0:00:02]} d6 {[%emt 0:05:09]} 12. Nc3 {[%emt 0:01:34]} a6 {[%emt 0:00:48]} 13. a4 {[%emt 0:03:00]} Re8 {[%emt 0:09:27]} 14. Bd3 {[%emt 0:17:20]} Nd7 {[%emt 0:03:11]} 15. f4 {[%emt 0:00:20]} Nf6 {[%emt 0:22:26]} 16. O-O {[%emt 0:02:02]} Bd7 {[%emt 0:06:13]} 17. h3 {[%emt 0:12:11]} Qc8 {[%emt 0:02:22]} 18. e4 {[%emt 0:22:05]} b5 {[%emt 0:03:13]} 19. axb5 {[%emt 0:00:22]} c4 {[%emt 0:00:07]} 20. Bc2 {[%emt 0:02:30]} axb5 {[%emt 0:00:08]} 21. Rxa8 {[%emt 0:00:03]} Qxa8 {[%emt 0:00:07]} 22. Re1 {[%emt 0:00:04]} b4 {[%emt 0:04:59]} 23. Nd1 {[%emt 0:00:07]} Qa7+ {[%emt 0:00:56]} 24. Kh2 {[%emt 0:00:27]} Qc5 {[%emt 0:00:27]} 25. Re3 {[%emt 0:14:34]} h5 {[%emt 0:01:39]} 26. Qe1 {[%emt 0:02:17]} (26. Re1 $17) 26... Kf8 {[%emt 0:05:48]} (26... Ra8 $19 {And now ...Ra1 would win.} 27. Rg3 Re8) 27. Qd2 {[%emt 0:01:57]} Kg8 {[%emt 0:05:34]} (27... Bb5 $17 28. Qf2 Ra8) 28. Re1 {[%emt 0:01:47]} (28. Qe1 $1 $11) 28... h4 $17 {[%emt 0:01:32]} 29. g3 {[%emt 0:05:15]} (29. Nf2 $17 {was called for.}) 29... hxg3+ {[%emt 0:01:21]} 30. Kxg3 {[%emt 0:00:01]} Ba4 {[%emt 0:03:55]} 31. Bxa4 {[%emt 0:01:08]} Nxe4+ {[%emt 0:00:08]} (31... Rxe4 32. Bc2 Rxe1 (32... Qxd5 $2 33. Qxd5 Rxe1 34. Qxc4 $18) (32... c3 33. bxc3 Rxe1 34. Qxe1 $16) 33. Qxe1 $14) 32. Rxe4 {[%emt 0:00:03]} Rxe4 {[%emt 0:00:06]} 33. Bc2 {[%emt 0:00:51]} Qg1+ {[%emt 0:01:13]} 34. Kf3 {[%emt 0:00:10] [#]} Qh1+ {[%emt 0:00:48]} (34... Re8 $1 $19 35. Ne3 Re7) 35. Kg3 $17 {[%emt 0:01:08]} Re1 {[%emt 0:06:01]} (35... Qg1+ 36. Kf3 Rd4 37. Qe3 Qxe3+ (37... Rxd1 38. Qe8#) (37... Qh1+ $2 38. Ke2 $18) 38. Nxe3) ({Black should play} 35... Re8 $17 36. b3 c3) 36. Ne3 $1 $15 {[%emt 0:00:14]} b3 {[%emt 0:00:51]} (36... Rg1+ 37. Ng2 $16) 37. Ng2 $2 {[%emt 0:00:16][%mdl 8192]} ({White must play} 37. Be4 $1 $15 Qg1+ (37... Qxe4 38. Qxe1 Qd3 39. Kf3 $11) 38. Kf3) 37... Re8 $19 {[%emt 0:00:46]} 38. Bf5 {[%emt 0:00:13]} g6 {[%emt 0:00:26]} 39. Bd7 {[%emt 0:00:16]} Re7 $2 {[%emt 0:00:23]} (39... c3 $19 40. Qxc3 Re2) 40. Bg4 $15 {[%emt 0:01:02]} Qb1 {[%emt 0:00:40]} 41. f5 $2 {[%emt 0:00:07]} (41. Qc3 $1 $15) 41... Re5 {[%emt 0:00:39]} (41... gxf5 42. Qg5+ Kf8 43. Qf6 f4+ (43... fxg4 44. Qh8#) (43... Qd3+ 44. Bf3 $14) 44. Nxf4 (44. Kxf4 $2 Qe4+ 45. Kg3 Qe5+ 46. Qf4 f5 $19) (44. Kh2 $2 Qg6 $19) 44... Qe1+ 45. Kg2 Qd2+ 46. Kg3 Qe3+ 47. Kg2 Qd2+ 48. Kg3 Qe1+ 49. Kg2 Qd2+ $11) 42. fxg6 $2 {[%emt 0:00:50]} (42. f6 Kh7 43. h4) 42... Qxg6 $19 {[%emt 0:00:27]} 43. Qb4 {[%emt 0:01:38]} Qd3+ {[%emt 0:00:26]} (43... Rxd5 44. Nf4 (44. Qxc4 $2 {is the wrong capture.} Qd3+ 45. Qxd3 Rxd3+ 46. Bf3 Rd2 $19) 44... Rd3+ 45. Kh2 $11 (45. Nxd3 Qxd3+ 46. Bf3 Kf8 $11)) 44. Kh4 {[%emt 0:00:21]} Qd4 {[%emt 0:00:23]} ({Worse is} 44... Rxd5 45. Nf4 Qh7+ 46. Kg3 Rd3+ 47. Nxd3 Qxd3+ 48. Bf3 $11) 45. Kg3 {[%emt 0:00:17]} Rxd5 {[%emt 0:00:28]} 46. h4 {[%emt 0:00:38]} Qe5+ {[%emt 0:00:26]} 0-1

[Event "Pan-American Collegiate-ch 2025"]
[Site "Charlotte"]
[Date "2025.01.04"]
[Round "4.7"]
[White "Beradze, Irakli"]
[Black "Bilych, Oleksii"]
[Result "1-0"]
[Annotator "TA"]
[ECO "A13"]
[WhiteElo "2498"]
[BlackElo "2445"]
[PlyCount "135"]
[EventDate "2025.01.02"]
[EventType "team-tourn"]
[EventCountry "USA"]
[SourceTitle "playchess.com"]
[Source "ChessBase"]
[SourceQuality "1"]
[TimeControl "5400+30"]

{[%evp 14,135,6,0,0,6,19,-1,2,4,101,88,97,115,81,51,47,42,126,43,36,39,141,0,0,2,56,56,56,20,8,14,3,13,13,12,7,0,173,178,155,164,137,153,117,89,213,221,221,220,220,214,200,204,220,192,200,200,198,198,174,183,183,183,218,218,231,227,212,208,267,207,207,207,442,384,349,207,207,192,192,192,192,192,192,192,192,192,192,192,192,192,192,192,206,0,192,0,206,206,29972,29974,29973,29975,29974,29975,29976,29977,29977,29978,29978,29978,29980,29980,29980,29981,29981,29982,29982,29982,29985,29986,29986,29984]} 1. Nf3 {[%emt 0:05:35]} d5 {[%emt 0:00:09]} 2. g3 {[%emt 0:00:06]} Nf6 {[%emt 0:00:11]} 3. Bg2 {[%emt 0:00:18]} c5 {[%emt 0:00:13]} 4. O-O {[%emt 0:00:24]} e6 {[%emt 0:00:10]} 5. c4 {[%emt 0:00:34]} d4 {[%emt 0:00:08]} 6. e3 {[%emt 0:00:09]} Nc6 {[%emt 0:00:07]} 7. exd4 {[%emt 0:00:06]} cxd4 {[%emt 0:00:04]} 8. d3 {[%emt 0:00:05]} Bd6 {[%emt 0:00:13]} 9. Na3 {[%emt 0:00:21]} O-O {[%emt 0:01:07]} 10. Nc2 {[%emt 0:00:04]} e5 {[%emt 0:19:03]} 11. b4 {[%emt 0:00:40][%cal Bb2b4,Bb4b5][%mdl 32]} a5 {[%emt 0:05:16]} (11... Re8 $11 {keeps the balance.}) 12. c5 $1 $16 {[%emt 0:16:56]} Bb8 {[%emt 0:03:56]} 13. b5 {[%emt 0:00:30]} Nb4 {[%emt 0:05:12]} 14. Nxb4 {[%emt 0:13:22]} axb4 {[%emt 0:00:05]} 15. Qb3 {[%emt 0:00:03]} Bd7 {[%emt 0:10:43]} ({Better is} 15... Be6 $14 16. Qxb4 Nd5) 16. Re1 {[%emt 0:09:54]} (16. Qxb4 $16 {And now Nd2 would win.} Qa5 17. Qxa5 Rxa5 18. b6 (18. Re1 Re8 $14)) 16... Qa5 {[%emt 0:09:38]} 17. Nxe5 {[%emt 0:12:03]} Be6 {[%emt 0:10:51]} (17... Bxe5 $14 18. Rxe5 Qxb5) 18. Qb2 {[%emt 0:06:57] White is more active.} (18. Nc4 $1 $16 {[%cal Rc4a5]} Qxb5 19. Bd2) 18... Qxb5 $11 {[%emt 0:00:24]} 19. Qxd4 {[%emt 0:03:36]} Ba7 {[%emt 0:01:23]} (19... Rc8 $11) 20. Be3 $14 {[%emt 0:02:14]} Rac8 $1 {[%emt 0:01:09]} 21. a4 {[%emt 0:01:36]} bxa3 {[%emt 0:03:53][%cal Ra7c5]} 22. Reb1 $36 {[%emt 0:01:35][%mdl 2048] White has good play.} Qxc5 {[%emt 0:00:42]} 23. Qf4 {[%emt 0:03:53]} Qa5 {[%emt 0:02:31]} 24. Bxa7 {[%emt 0:03:27]} Qxa7 {[%emt 0:00:37]} 25. Rxb7 {[%emt 0:00:05]} Qa5 $2 {[%emt 0:01:09] [#]} (25... Qa6 $11 {and Black has nothing to worry.}) 26. Nc6 $1 $18 {[%emt 0:05:25]} Rxc6 {[%emt 0:08:49]} (26... Qc3 27. Rc1 Rxc6 28. Bxc6 Qxd3 29. Rb8 $11 (29. Bb5 Qd8 $11)) 27. Bxc6 {[%emt 0:00:05][%cal Bg2c6,Bc6b5,Bb5c4][%mdl 32]} a2 {[%emt 0:06:14]} 28. Rb8 {[%emt 0:00:55]} h5 {[%emt 0:01:21][%cal Bh7h5,Bh5h4,Bh4h3][%mdl 32]} 29. Bb5 {[%emt 0:10:02]} Rxb8 {[%emt 0:07:43]} (29... Qc3 $16 30. Rxf8+ Kxf8 31. Qb8+ Ke7 32. Qa7+ Kd6 33. Qa6+ Kc7) 30. Qxb8+ {[%emt 0:00:03]} Kh7 {[%emt 0:00:05]} 31. Bc4 {[%emt 0:01:26]} Qc3 {[%emt 0:00:57]} 32. Rxa2 {[%emt 0:00:02]} Qe1+ {[%emt 0:00:14]} 33. Kg2 {[%emt 0:00:03]} h4 {[%emt 0:00:25] aiming for ...h3+.} 34. Bxe6 {[%emt 0:01:41]} (34. gxh4 Bxc4 35. dxc4 Qe4+ 36. f3 Qxc4 37. Qb1+ g6 $16) 34... Qxe6 {[%emt 0:00:06][%mdl 4096] Endgame KQR-KQN} 35. Ra1 {[%emt 0:00:54]} h3+ {[%emt 0:00:29]} 36. Kg1 {[%emt 0:00:06]} Qd5 {[%emt 0:01:02][%csl Gh3][%cal Rd5g2]} 37. Qa8 {[%emt 0:00:04]} Qxd3 {[%emt 0:00:05]} 38. Qa6 {[%emt 0:00:41]} Qe4 {[%emt 0:01:12]} 39. Qf1 {[%emt 0:00:09] Inhibits Qg2+.} Qe6 {[%emt 0:00:14]} 40. Re1 {[%emt 0:01:01]} Qf5 {[%emt 0:00:18]} 41. Qc4 {[%emt 0:00:21]} Kg6 {[%emt 0:01:07]} 42. Qb3 {[%emt 0:03:20]} Ng4 {[%emt 0:00:59]} 43. Qb1 {[%emt 0:00:33]} Qxb1 $2 {[%emt 0:00:20]} (43... Ne5 44. Qxf5+ Kxf5) 44. Rxb1 {[%emt 0:00:03] KR-KN} Ne5 {[%emt 0:00:06]} 45. f4 {[%emt 0:00:31]} (45. Rb3 $142) 45... Nf3+ {[%emt 0:01:05]} 46. Kf2 {[%emt 0:00:52]} Nxh2 {[%emt 0:00:05] [#]} 47. Rh1 $1 {[%emt 0:00:03]} Ng4+ {[%emt 0:00:06]} 48. Kf3 {[%emt 0:00:03]} f5 {[%emt 0:01:05]} 49. Rxh3 {[%emt 0:00:05]} Nf6 {[%emt 0:00:22]} 50. Rh8 {[%emt 0:00:20]} Kf7 {[%emt 0:00:05]} 51. Ra8 {[%emt 0:00:17]} g6 {[%emt 0:00:54]} 52. Ra7+ {[%emt 0:00:18]} Kf8 {[%emt 0:00:04]} 53. Kg2 {[%emt 0:03:04]} Ne4 {[%emt 0:00:21]} 54. Kf3 {[%emt 0:00:00]} Nf6 {[%emt 0:00:09]} 55. Kg2 {[%emt 0:01:00]} Ne4 $1 {[%emt 0:00:13]} 56. Kh3 {[%emt 0:00:00] Threatening mate with g4.} Kg8 $2 {[%emt 0:00:46]} (56... Nc5 $18 57. Kg2 Ne4) 57. Kh4 {[%emt 0:00:00]} Kf8 {[%emt 0:00:09]} 58. g4 {[%emt 0:00:00]} fxg4 {[%emt 0:00:07]} 59. Kxg4 {[%emt 0:00:00]} Kg8 {[%emt 0:00:17]} 60. Re7 {[%emt 0:00:24]} Nf2+ {[%emt 0:00:35]} 61. Kh4 {[%emt 0:00:10]} Kf8 {[%emt 0:00:23]} 62. Re3 {[%emt 0:00:51]} Nd1 {[%emt 0:00:08]} 63. Rb3 {[%emt 0:00:18]} Nf2 {[%emt 0:00:01]} 64. Kg5 {[%emt 0:00:14]} Kf7 {[%emt 0:00:44]} 65. Rb7+ {[%emt 0:00:09]} Ke6 {[%emt 0:00:11]} 66. Kxg6 {[%emt 0:00:12]} Nd3 {[%emt 0:00:06]} 67. f5+ {[%emt 0:00:04]} Ke5 {[%emt 0:00:11]} 68. Rb5+ {[%emt 0:00:21]} 1-0